[Event "25th Zadar Open 2018"]
[Site "Zadar"]
[Date "2018.12.19"]
[Round "6.15"]
[White "Nielsen, Hogni Egilstoft"]
[Black "Sokac, Marko"]
[Result "1-0"]
[ECO "B51"]
[WhiteElo "2400"]
[BlackElo "2301"]
[Annotator "ChessBase"]
[PlyCount "177"]
[EventDate "2018.12.15"]
[EventType "swiss"]
[EventCountry "CRO"]
[SourceTitle "playchess.com"]
[Source "ChessBase"]
[SourceQuality "1"]
[TimeControl "40/5400+30:1800+30"]

1. e4 {[%emt 0:00:30]} c5 {[%emt 0:00:30]} 2. Nf3 {[%emt 0:00:00]} d6 {[%emt 0:00:00]} 3. Bb5+ {[%emt 0:00:00]} Nd7 {[%emt 0:00:00]} 4. O-O {[%emt 0:01:30]} Ngf6 {[%emt 0:00:30]} 5. Re1 {[%emt 0:00:30]} a6 {[%emt 0:00:00]} 6. Bf1 {[%emt 0:00:30]} b6 {[%emt 0:00:00]} 7. c3 {[%emt 0:08:30]} Bb7 {[%emt 0:01:30]} 8. d3 {[%emt 0:00:30]} g6 {[%emt 0:00:30]} 9. Nbd2 {[%emt 0:03:30]} Bg7 {[%emt 0:00:30]} 10. d4 {[%emt 0:00:30]} cxd4 {[%emt 0:00:30]} 11. cxd4 {[%emt 0:00:30]} O-O {[%emt 0:01:30]} 12. Bd3 {[%emt 0:08:30]} e5 {[%emt 0:05:30]} 13. dxe5 {[%emt 0:09:30]} Nxe5 {[%emt 0:03:30]} 14. Nxe5 {[%emt 0:02:30]} dxe5 {[%emt 0:00:30]} 15. Qe2 {[%emt 0:00:30]} Nd7 {[%emt 0:02:30]} 16. Nb3 {[%emt 0:03:30]} Re8 {[%emt 0:03:30]} 17. Be3 {[%emt 0:06:30]} Nf8 {[%emt 0:01:30]} 18. Red1 {[%emt 0:01:30]} Qf6 {[%emt 0:00:30]} 19. Qf3 {[%emt 0:07:30]} Qe6 {[%emt 0:07:30]} 20. Rac1 {[%emt 0:03:30]} Rac8 {[%emt 0:00:00]} 21. Qe2 {[%emt 0:01:30]} b5 {[%emt 0:11:00]} 22. Nc5 {[%emt 0:03:30]} Qe7 {[%emt 0:00:00]} 23. a4 {[%emt 0:03:30]} bxa4 {[%emt 0:01:00]} 24. Nxb7 {[%emt 0:01:30]} Rxc1 {[%emt 0:00:00]} 25. Bxc1 {[%emt 0:01:30]} Qxb7 {[%emt 0:00:00]} 26. Bxa6 {[%emt 0:00:30]} Qa8 {[%emt 0:04:30]} 27. Bc4 {[%emt 0:02:30]} Ne6 {[%emt 0:01:30]} 28. Bd5 {[%emt 0:01:30]} Qa5 {[%emt 0:04:30]} 29. Qc4 {[%emt 0:02:30]} h6 {[%emt 0:01:30]} 30. Bd2 {[%emt 0:01:30]} Qa7 {[%emt 0:06:30]} 31. Ra1 {[%emt 0:03:30]} Qd4 {[%emt 0:03:30]} 32. Qxa4 {[%emt 0:05:47]} Nc7 {[%emt 0:05:30]} 33. Qd7 {[%emt 0:06:54]} Rf8 {[%emt 0:00:30]} 34. Bc3 {[%emt 0:01:21]} Qb6 {[%emt 0:01:30]} 35. Bc4 {[%emt 0:01:48]} Kh8 {[%emt 0:00:30]} 36. Rd1 {[%emt 0:02:14]} Ne6 {[%emt 0:01:30]} 37. Qd6 {[%emt 0:03:38]} Qa7 {[%emt 0:03:30]} 38. Qa6 {[%emt 0:01:45]} Qxa6 {[%emt 0:02:30]} 39. Bxa6 {[%emt 0:00:05]} Nc5 {[%emt 0:00:00]} 40. Bd3 {[%emt 0:00:00]} Rd8 {[%emt 0:00:00]} 41. Bc2 {[%emt 0:02:28]} Rxd1+ {[%emt 0:00:30]} 42. Bxd1 {[%emt 0:00:00]} Nxe4 {[%emt 0:00:00]} 43. Ba5 {[%emt 0:10:00]} Bf8 {[%emt 0:02:00]} 44. b4 {[%emt 0:03:44]} Nc3 {[%emt 0:00:00]} 45. Bb3 {[%emt 0:00:37]} Kg7 {[%emt 0:01:00]} 46. Bc4 {[%emt 0:01:07]} Ne4 {[%emt 0:03:30]} 47. Bd3 {[%emt 0:04:41]} Nd6 {[%emt 0:04:30]} 48. b5 {[%emt 0:04:21]} e4 {[%emt 0:00:30]} 49. Be2 {[%emt 0:00:22]} f5 {[%emt 0:02:30]} 50. b6 {[%emt 0:03:27]} Nb7 {[%emt 0:03:30]} 51. Bc3+ {[%emt 0:00:06]} Kf7 {[%emt 0:00:30]} 52. Bc4+ {[%emt 0:00:47]} Ke8 {[%emt 0:00:30]} 53. Bd5 {[%emt 0:00:24]} Nd8 {[%emt 0:02:30]} 54. Be5 {[%emt 0:00:12]} Kd7 {[%emt 0:00:30]} 55. b7 {[%emt 0:00:16]} Nxb7 {[%emt 0:00:30]} 56. Bxb7 {[%emt 0:00:05]} Ke6 {[%emt 0:00:00]} 57. Bd4 {[%emt 0:01:53]} Kd6 {[%emt 0:01:00]} 58. Kf1 {[%emt 0:00:30]} Ke6 {[%emt 0:00:30]} 59. Ke2 {[%emt 0:00:20]} Bd6 {[%emt 0:00:30]} 60. h3 {[%emt 0:00:56]} Bf8 {[%emt 0:00:30]} 61. Bc3 {[%emt 0:00:56]} h5 {[%emt 0:01:30]} 62. Ba6 {[%emt 0:01:06]} Bc5 {[%emt 0:01:30]} 63. Bc4+ {[%emt 0:02:22]} Ke7 {[%emt 0:00:30]} 64. Be5 {[%emt 0:00:53]} Bb6 {[%emt 0:01:30]} 65. Bd5 {[%emt 0:00:26]} Bc5 {[%emt 0:00:30]} 66. Bc3 {[%emt 0:01:49]} Bb6 {[%emt 0:00:30]} 67. Bd2 {[%emt 0:01:08]} Kf6 {[%emt 0:00:30]} 68. Be3 {[%emt 0:00:37]} Bc7 {[%emt 0:00:00]} 69. Bd4+ {[%emt 0:00:14]} Ke7 {[%emt 0:01:00]} 70. Ke3 {[%emt 0:01:14]} Bd6 {[%emt 0:00:00]} 71. Kd2 {[%emt 0:00:44]} Bb4+ {[%emt 0:00:00]} 72. Ke2 {[%emt 0:00:16]} Bd6 {[%emt 0:00:30]} 73. Kf1 {[%emt 0:00:37]} Bc7 {[%emt 0:00:30]} 74. g3 {[%emt 0:00:42]} Bd6 {[%emt 0:00:00]} 75. Kg2 {[%emt 0:00:20]} Bc7 {[%emt 0:00:00]} 76. g4 {[%emt 0:00:34]} hxg4 {[%emt 0:00:00]} 77. hxg4 {[%emt 0:00:07]} fxg4 {[%emt 0:05:00]} 78. Bxe4 {[%emt 0:00:07]} Kf7 {[%emt 0:00:30]} 79. Bd5+ {[%emt 0:00:18]} Ke7 {[%emt 0:00:00]} 80. Bc4 {[%emt 0:00:17]} Bd6 {[%emt 0:01:00]} 81. Be2 {[%emt 0:00:12]} Kf7 {[%emt 0:00:00]} 82. Bxg4 {[%emt 0:00:10]} Kg8 {[%emt 0:00:00]} 83. Kf3 {[%emt 0:01:30]} Kh7 {[%emt 0:00:00]} 84. Ke4 {[%emt 0:00:19]} Be7 {[%emt 0:00:00]} 85. Kd5 {[%emt 0:00:13]} Bh4 {[%emt 0:00:30]} 86. Ke6 {[%emt 0:00:27]} Bg5 {[%emt 0:01:30]} 87. Kf7 {[%emt 0:01:00]} Bd2 {[%emt 0:00:00]} 88. Be2 {[%emt 0:00:43]} g5 {[%emt 0:01:00]} 89. Bg7 {[%emt 0:00:14]} 1-0

[Event "25th Zadar Open 2018"]
[Site "Zadar"]
[Date "2018.12.19"]
[Round "6.16"]
[White "Janzelj, Tim"]
[Black "Djoric, Dusan"]
[Result "1-0"]
[ECO "D55"]
[WhiteElo "2395"]
[BlackElo "2298"]
[Annotator "ChessBase"]
[PlyCount "105"]
[EventDate "2018.12.15"]
[EventType "swiss"]
[EventCountry "CRO"]
[SourceTitle "playchess.com"]
[Source "ChessBase"]
[SourceQuality "1"]
[TimeControl "40/5400+30:1800+30"]

1. d4 {[%emt 0:00:30]} Nf6 {[%emt 0:00:30]} 2. c4 {[%emt 0:00:00]} e6 {[%emt 0:00:30]} 3. Nf3 {[%emt 0:00:00]} d5 {[%emt 0:00:30]} 4. Bg5 {[%emt 0:02:30]} Be7 {[%emt 0:00:30]} 5. e3 {[%emt 0:02:30]} c6 {[%emt 0:03:30]} 6. Nc3 {[%emt 0:05:30]} b6 {[%emt 0:05:30]} 7. cxd5 {[%emt 0:02:30]} exd5 {[%emt 0:01:30]} 8. Rc1 {[%emt 0:01:30]} Nbd7 {[%emt 0:07:30]} 9. Bd3 {[%emt 0:03:30]} O-O {[%emt 0:00:30]} 10. O-O {[%emt 0:02:30]} Bb7 {[%emt 0:00:30]} 11. Bxf6 {[%emt 0:06:30]} Nxf6 {[%emt 0:00:30]} 12. Ne5 {[%emt 0:00:30]} c5 {[%emt 0:02:30]} 13. Qf3 {[%emt 0:02:30]} Bd6 {[%emt 0:18:30]} 14. Ng4 {[%emt 0:11:30]} Nxg4 {[%emt 0:02:30]} 15. Qxg4 {[%emt 0:00:30]} cxd4 {[%emt 0:01:30]} 16. exd4 {[%emt 0:01:30]} Qf6 {[%emt 0:04:30]} 17. Nb5 {[%emt 0:03:30]} Bf4 {[%emt 0:03:30]} 18. Rc3 {[%emt 0:05:30]} Ba6 {[%emt 0:17:30]} 19. g3 {[%emt 0:08:30]} Bxb5 {[%emt 0:02:30]} 20. Bxb5 {[%emt 0:00:30]} Bd6 {[%emt 0:03:30]} 21. Bc6 {[%emt 0:13:30]} Rad8 {[%emt 0:00:30]} 22. Bxd5 {[%emt 0:00:30]} Bc5 {[%emt 0:11:03]} 23. dxc5 {[%emt 0:02:30]} Rxd5 {[%emt 0:00:04]} 24. c6 {[%emt 0:00:30]} h5 {[%emt 0:04:44]} 25. Qe4 {[%emt 0:01:30]} Qd6 {[%emt 0:02:57]} 26. Rfc1 {[%emt 0:03:45]} Rc8 {[%emt 0:00:47]} 27. h4 {[%emt 0:06:28]} Rc7 {[%emt 0:03:04]} 28. a3 {[%emt 0:02:20]} g6 {[%emt 0:00:51]} 29. b4 {[%emt 0:00:23]} a5 {[%emt 0:00:54]} 30. bxa5 {[%emt 0:01:53]} bxa5 {[%emt 0:01:09]} 31. Kg2 {[%emt 0:00:29]} Kg7 {[%emt 0:00:29]} 32. Rc4 {[%emt 0:01:41]} Qe5 {[%emt 0:00:49]} 33. Qf3 {[%emt 0:01:35]} Qd6 {[%emt 0:00:19]} 34. R1c3 {[%emt 0:05:10]} Rf5 {[%emt 0:00:15]} 35. Qe3 {[%emt 0:02:23]} Rd5 {[%emt 0:00:43]} 36. Rc5 {[%emt 0:00:25]} Rxc5 {[%emt 0:00:28]} 37. Qxc5 {[%emt 0:00:12]} Qxc5 {[%emt 0:00:16]} 38. Rxc5 {[%emt 0:00:08]} Kf6 {[%emt 0:00:24]} 39. Kf3 {[%emt 0:00:17]} Ke6 {[%emt 0:00:20]} 40. g4 {[%emt 0:00:00]} Kd6 {[%emt 0:00:00]} 41. Rc1 {[%emt 0:22:02]} hxg4+ {[%emt 0:02:24]} 42. Kxg4 {[%emt 0:00:37]} Rxc6 {[%emt 0:00:30]} 43. Rxc6+ {[%emt 0:00:19]} Kxc6 {[%emt 0:00:00]} 44. Kg5 {[%emt 0:00:07]} Kd7 {[%emt 0:00:00]} 45. Kf6 {[%emt 0:00:00]} Ke8 {[%emt 0:00:30]} 46. a4 {[%emt 0:00:00]} Kf8 {[%emt 0:00:30]} 47. Ke5 {[%emt 0:00:04]} Kg7 {[%emt 0:01:30]} 48. Kd5 {[%emt 0:00:05]} Kh6 {[%emt 0:00:30]} 49. Kc6 {[%emt 0:00:05]} Kh5 {[%emt 0:00:30]} 50. Kb6 {[%emt 0:00:03]} Kxh4 {[%emt 0:00:30]} 51. Kxa5 {[%emt 0:00:05]} g5 {[%emt 0:00:00]} 52. Kb4 {[%emt 0:00:08]} f5 {[%emt 0:01:00]} 53. a5 {[%emt 0:00:05]} 1-0

[Event "25th Zadar Open 2018"]
[Site "Zadar"]
[Date "2018.12.19"]
[Round "6.17"]
[White "Bilobrk, Franjo"]
[Black "Dixit, Nikhil"]
[Result "0-1"]
[ECO "E91"]
[WhiteElo "2364"]
[BlackElo "2292"]
[Annotator "NA"]
[PlyCount "134"]
[EventDate "2018.12.15"]
[EventType "swiss"]
[EventCountry "CRO"]
[SourceTitle "playchess.com"]
[Source "ChessBase"]
[SourceQuality "1"]
[TimeControl "40/5400+30:1800+30"]

{[%evp 20,134,28,27,26,23,40,22,31,35,27,36,32,36,52,32767,32767,32767,32767,32767,32767,32767,32767,0,-7,0,0,-8,0,-17,-9,-10,-14,-17,-18,-37,-35,-24,-35,-48,-45,-48,-59,-43,-47,-50,-50,32767,32767,-24,-23,-54,-51,-51,32767,-295,-349,-318,32767,32767,32767,-344,-320,-307,-357,32767,-477,32767,32767,32767,32767,32767,32767,32767,-726,32767,-693,32767,32767,32767,32767,32767,32767,-6544,-4029,-1065,-29955,32767,32767,32767,-370,-1491,32767,32767,32767,32767,-4574,32767,32767,32767,-8,-29974,32767,-29980,-29981,32767,32767,32767,32767,32767,32767,32767,32767,32767,32767,-29987,-29988]} 1. d4 {[%emt 0:00:30]} Nf6 {[%emt 0:03:30]} 2. c4 {[%emt 0:00:00]} g6 {[%emt 0:00:00]} 3. Nc3 {[%emt 0:00:00]} Bg7 {[%emt 0:00:00]} 4. e4 {[%emt 0:00:00]} d6 {[%emt 0:00:00]} 5. Nf3 {[%emt 0:00:00]} O-O {[%emt 0:00:00]} 6. Be2 {[%emt 0:00:30]} Bg4 {[%emt 0:00:30]} 7. Be3 {[%emt 0:00:30]} Nfd7 {[%emt 0:00:30]} 8. Ng1 {[%emt 0:02:30]} Bxe2 {[%emt 0:00:30]} 9. Ngxe2 {[%emt 0:00:30]} c5 {[%emt 0:01:30]} 10. O-O {[%emt 0:01:30]} cxd4 {[%emt 0:13:30]} 11. Nxd4 {[%emt 0:01:30]} Nc6 {[%emt 0:00:00]} 12. Rc1 {[%emt 0:03:30]} Rc8 {[%emt 0:03:00] E91: King's Indian: Classical: 6 Be2, unusual replies including 6...c5 and 6...Bg4} (12... Qa5 13. Nd5 Rae8 14. a3 Nf6 15. b4 Qxa3 16. Nxc6 Nxd5 17. cxd5 bxc6 18. dxc6 Qxb4 19. Qd5 e6 20. Qd3 Rc8 {½-½ (65) Artemiev,V (2570)-Kokarev,D (2631) Khanty-Mansiysk 2013}) 13. b3 {[%emt 0:01:30] LiveBook: 18 Games} Nc5 {[%emt 0:01:30]} 14. Qd2 {[%emt 0:01:30]} Qa5 {[%emt 0:07:30]} 15. Rfd1 {[%emt 0:00:30]} a6 $146 {[%emt 0:09:30]} ({Predecessor:} 15... Ne6 16. Nde2 Nc5 17. f3 Nd7 18. Nf4 Rfe8 19. Nfd5 a6 20. Na4 Qxd2 21. Rxd2 {1-0 (54) Bauche,T (1978)-Hilverda,A (2329) Metz 2013}) 16. f3 {[%emt 0:04:30]} Ne6 {[%emt 0:06:30]} 17. Nxc6 {[%emt 0:19:30]} bxc6 {[%emt 0:00:30]} 18. Na4 {[%emt 0:02:30]} Qxd2 {[%emt 0:00:30]} 19. Rxd2 {[%emt 0:00:30]} c5 {[%emt 0:00:30]} 20. Rcd1 {[%emt 0:02:30]} Rb8 {[%emt 0:02:30]} 21. Kf2 {[%emt 0:01:30]} f5 {[%emt 0:01:30]} 22. exf5 {[%emt 0:00:30]} Rxf5 {[%emt 0:03:30]} 23. Re1 {[%emt 0:13:30]} Be5 {[%emt 0:02:30]} 24. Kg1 {[%emt 0:02:30]} h5 {[%emt 0:01:30]} 25. Bf2 {[%emt 0:02:30]} g5 {[%emt 0:01:30]} 26. Bg3 {[%emt 0:00:30]} Nf4 {[%emt 0:01:30]} 27. Bxf4 {[%emt 0:04:30]} gxf4 {[%emt 0:04:30]} 28. Kf1 {[%emt 0:01:30]} Kf7 {[%emt 0:02:30]} 29. Rde2 {[%emt 0:02:30]} Bf6 {[%emt 0:01:30]} 30. Re4 {[%emt 0:00:00]} h4 {[%emt 0:07:30]} 31. h3 {[%emt 0:00:00]} Rb7 {[%emt 0:00:30]} 32. R1e2 {[%emt 0:00:30]} Bd4 {[%emt 0:01:30]} 33. Re6 {[%emt 0:05:30]} Rf6 {[%emt 0:05:27]} 34. Rxf6+ {[%emt 0:01:30]} Kxf6 {[%emt 0:00:09]} 35. Rc2 {[%emt 0:08:34]} Kf5 {[%emt 0:01:23]} 36. Ke2 {[%emt 0:00:21]} e5 {[%emt 0:02:52]} 37. Kd3 $2 {[%emt 0:04:17] [#]} (37. Nc3 $1 $15) 37... e4+ $1 {[%emt 0:02:55]} 38. fxe4+ {[%emt 0:00:39]} Ke5 {[%emt 0:00:03]} 39. Re2 {[%emt 0:00:51]} Rf7 {[%emt 0:05:27]} 40. Kc2 {[%emt 0:00:00] [#]} f3 $1 {[%emt 0:00:00]} 41. gxf3 {[%emt 0:02:48]} Rxf3 {[%emt 0:01:14]} 42. Rh2 {[%emt 0:07:30]} Kf4 {[%emt 0:00:30]} 43. Nb6 {[%emt 0:02:30]} Kg3 {[%emt 0:01:30]} 44. Rd2 {[%emt 0:01:30]} Kxh3 {[%emt 0:01:30]} 45. Nc8 {[%emt 0:00:30]} Kg4 {[%emt 0:10:30]} 46. Nxd6 {[%emt 0:00:30]} h3 {[%emt 0:04:30]} 47. e5 {[%emt 0:07:30]} Bxe5 {[%emt 0:01:30]} 48. Ne4 {[%emt 0:00:30]} h2 {[%emt 0:00:30]} 49. Rxh2 {[%emt 0:01:30]} Bxh2 {[%emt 0:00:00]} 50. Nxc5 {[%emt 0:00:00]} Rf2+ {[%emt 0:00:00]} 51. Kb1 {[%emt 0:01:00]} a5 {[%emt 0:00:30]} 52. Ne4 {[%emt 0:03:30]} Rg2 {[%emt 0:01:30]} 53. Nc3 {[%emt 0:00:30]} Be5 {[%emt 0:00:30]} 54. Na4 {[%emt 0:00:00]} Rg1+ $2 {[%emt 0:01:30]} (54... Kf4 {mates} 55. a3 Ke3 56. b4 Kd3 57. Nc5+ Kxc4 58. Nb7 axb4 59. axb4 Kxb4 60. Na5 Kxa5 61. Kc1 Bc3 62. Kd1 Bb4 63. Kc1 Ka4 64. Kd1 Kb3 65. Kc1 Rg1#) 55. Kc2 {[%emt 0:00:00]} Ra1 {[%emt 0:00:30]} 56. c5 {[%emt 0:00:30]} Kf5 {[%emt 0:00:30]} 57. Kd3 {[%emt 0:00:00]} Rxa2 {[%emt 0:01:54]} 58. Kc4 {[%emt 0:00:00]} Ke6 {[%emt 0:01:04]} 59. Kb5 {[%emt 0:01:30]} Rxa4 $2 {[%emt 0:08:00]} (59... Ra3 $19 60. b4 axb4 61. Kxb4 Ra1) 60. bxa4 $4 {[%emt 0:00:30]} (60. Kxa4 $11 Bc3 61. Kb5) 60... Bc7 {[%emt 0:00:31]} 61. Kc6 {[%emt 0:02:30] [#]} Bd8 $1 {[%emt 0:00:15]} 62. Kb7 {[%emt 0:00:30]} Kd5 {[%emt 0:02:49]} 63. c6 {[%emt 0:00:30]} Kc5 {[%emt 0:00:35]} 64. c7 {[%emt 0:02:18]} Bxc7 {[%emt 0:00:06]} 65. Kxc7 {[%emt 0:00:05]} Kb4 {[%emt 0:00:08]} 66. Kc6 {[%emt 0:00:18]} Kxa4 {[%emt 0:00:07]} 67. Kc5 {[%emt 0:00:28]} Kb3 {[%emt 0:00:05]} 0-1

[Event "25th Zadar Open 2018"]
[Site "Zadar"]
[Date "2018.12.19"]
[Round "6.18"]
[White "Ermeni, Avni"]
[Black "Paszewski, Mateusz"]
[Result "0-1"]
[ECO "B51"]
[WhiteElo "2183"]
[BlackElo "2342"]
[Annotator "NA"]
[PlyCount "106"]
[EventDate "2018.12.15"]
[EventType "swiss"]
[EventCountry "CRO"]
[SourceTitle "playchess.com"]
[Source "ChessBase"]
[SourceQuality "1"]
[TimeControl "40/5400+30:1800+30"]

1. e4 {[%emt 0:00:30]} c5 {[%emt 0:00:30]} 2. Nf3 {[%emt 0:00:00]} d6 {[%emt 0:00:00]} 3. Bb5+ {[%emt 0:01:00]} Nd7 {[%emt 0:00:00]} 4. O-O {[%emt 0:00:30]} a6 {[%emt 0:00:00]} 5. Bxd7+ {[%emt 0:01:30]} Bxd7 {[%emt 0:00:00]} 6. Re1 {[%emt 0:00:30]} Rc8 {[%emt 0:06:30] B51: Sicilian: Moscow Variation (3 Bb5+) without 3...Bd7} (6... Bg4 7. c3 e6 8. d4 Nf6 9. dxc5 dxc5 10. Qxd8+ Rxd8 11. Ne5 Bh5 12. f3 Nd7 13. Nxd7 Rxd7 14. Be3 {½-½ (46) Zvjaginsev,V (2633)-Sjugirov,S (2663) Yaroslavl 2018}) 7. d3 $146 {[%emt 0:06:30]} ({Predecessor:} 7. b3 Nf6 8. e5 dxe5 9. Nxe5 e6 10. Bb2 Be7 11. d3 O-O 12. Nd2 Bc6 13. Nxc6 Rxc6 14. Nc4 Nd7 15. f4 b5 16. Qf3 Qc7 17. Ne5 Nxe5 18. Bxe5 Bd6 {½-½ (18) Diaz Hernandez,H (2353)-Ruiz Sanchez,O (2455) Matanzas 2017}) 7... g6 {[%emt 0:01:30]} 8. Nc3 {[%emt 0:00:30]} Bg7 {[%emt 0:06:30]} 9. a4 {[%emt 0:08:30]} Nf6 {[%emt 0:01:30]} 10. e5 {[%emt 0:05:30]} dxe5 {[%emt 0:01:30]} 11. Nxe5 {[%emt 0:00:30]} Be6 {[%emt 0:03:30]} 12. Bg5 {[%emt 0:21:30]} O-O {[%emt 0:04:30]} 13. Qd2 {[%emt 0:10:30]} Re8 {[%emt 0:02:30]} 14. Bh6 {[%emt 0:04:30]} Bh8 {[%emt 0:03:30]} 15. Nf3 {[%emt 0:07:30]} Qd7 {[%emt 0:08:30]} 16. a5 {[%emt 0:06:30]} Nd5 {[%emt 0:07:30]} 17. Na4 {[%emt 0:04:55]} Qd6 {[%emt 0:05:30]} 18. Ng5 {[%emt 0:02:04]} Bf5 {[%emt 0:06:30]} 19. h3 {[%emt 0:04:43]} e5 {[%emt 0:08:30]} 20. Ne4 {[%emt 0:01:56]} Qe7 {[%emt 0:00:30]} 21. Bg5 {[%emt 0:03:02]} f6 {[%emt 0:11:30]} 22. Be3 {[%emt 0:00:04]} Rc6 {[%emt 0:00:39]} (22... c4 $14) 23. Bxc5 {[%emt 0:00:41]} Qd7 {[%emt 0:00:22]} 24. Be3 {[%emt 0:02:55]} Nxe3 {[%emt 0:02:39]} 25. Rxe3 {[%emt 0:00:24]} Bg7 {[%emt 0:00:02]} 26. Re2 {[%emt 0:01:12]} Qc7 {[%emt 0:00:59]} 27. Nb6 {[%emt 0:00:37]} Rd8 {[%emt 0:00:41]} 28. b3 {[%emt 0:02:24]} Bxe4 {[%emt 0:02:51]} 29. Rxe4 {[%emt 0:00:05]} Rxc2 {[%emt 0:00:10]} 30. Qb4 {[%emt 0:01:40]} Rxd3 {[%emt 0:03:54]} 31. Rc4 {[%emt 0:00:18]} Rxc4 {[%emt 0:00:07]} 32. bxc4 {[%emt 0:00:03]} Bf8 {[%emt 0:06:04]} 33. Qa4 {[%emt 0:00:17]} Kg7 {[%emt 0:01:30]} 34. Rb1 {[%emt 0:00:22]} Qc6 {[%emt 0:03:02]} 35. Qc2 {[%emt 0:00:51]} Rd4 {[%emt 0:00:17]} 36. Qb3 {[%emt 0:00:03]} Rd8 {[%emt 0:01:46]} 37. Nd5 {[%emt 0:00:10]} Rd7 {[%emt 0:00:01]} 38. Qf3 {[%emt 0:00:16]} Bc5 {[%emt 0:00:41]} 39. g4 {[%emt 0:00:19]} h6 {[%emt 0:00:57]} 40. h4 {[%emt 0:00:00]} Rf7 {[%emt 0:00:00]} 41. Qd3 {[%emt 0:15:09]} Bd4 {[%emt 0:09:18]} 42. Kg2 {[%emt 0:00:30]} Qd7 {[%emt 0:01:30]} 43. f3 {[%emt 0:04:59]} ({White should play} 43. Qe4) 43... Qa4 {[%emt 0:02:30]} 44. Kh3 {[%emt 0:03:46]} Qd7 {[%emt 0:07:22]} 45. Rd1 {[%emt 0:03:27]} f5 {[%emt 0:06:18]} 46. Rd2 {[%emt 0:01:21]} fxg4+ {[%emt 0:01:41]} 47. fxg4 {[%emt 0:00:06]} Qc8 {[%emt 0:01:50]} 48. Rg2 {[%emt 0:03:25] [#]} Qf8 $1 {[%emt 0:01:50]} 49. Qe4 $19 {[%emt 0:00:21]} (49. Kg3) 49... Rf3+ {[%emt 0:02:10]} 50. Kh2 {[%emt 0:00:06]} Qa3 {[%emt 0:00:30]} 51. Rg3 {[%emt 0:06:05]} Rxg3 {[%emt 0:00:43]} 52. Nf4 {[%emt 0:00:03]} Bg1+ {[%emt 0:02:05]} 53. Kh1 {[%emt 0:00:07]} Qf3+ {[%emt 0:00:03]} 0-1

[Event "25th Zadar Open 2018"]
[Site "Zadar"]
[Date "2018.12.19"]
[Round "6.19"]
[White "Biliskov, Vjekoslav"]
[Black "Spalir, Jernej"]
[Result "1/2-1/2"]
[ECO "D94"]
[WhiteElo "2313"]
[BlackElo "2336"]
[Annotator "NA"]
[PlyCount "71"]
[EventDate "2018.12.15"]
[EventType "swiss"]
[EventCountry "CRO"]
[SourceTitle "playchess.com"]
[Source "ChessBase"]
[SourceQuality "1"]
[TimeControl "40/5400+30:1800+30"]

{[%evp 25,66,0,12,20,8,14,38,25,37,32767,32767,32767,32767,32767,32767,32767,28,12,38,29,33,21,60,41,41,15,23,16,21,5,10,8,8,8,39,9,17,0,32767,32767,32767,32767,25]} 1. d4 {[%emt 0:00:30]} d5 {[%emt 0:00:30]} 2. c4 {[%emt 0:00:30]} c6 {[%emt 0:00:00]} 3. Nf3 {[%emt 0:00:30]} Nf6 {[%emt 0:00:00]} 4. e3 {[%emt 0:00:00]} g6 {[%emt 0:00:00]} 5. Nc3 {[%emt 0:00:00]} Bg7 {[%emt 0:00:00]} 6. Bd3 {[%emt 0:00:30]} O-O {[%emt 0:00:30]} 7. O-O {[%emt 0:00:30]} Bg4 {[%emt 0:00:00]} 8. h3 {[%emt 0:00:30]} Bxf3 {[%emt 0:00:00]} 9. Qxf3 {[%emt 0:00:00]} e6 {[%emt 0:00:30]} 10. Rd1 {[%emt 0:01:00]} Nbd7 {[%emt 0:00:30]} 11. Qe2 {[%emt 0:01:30]} Qe7 {[%emt 0:03:30] D94: Grünfeld: 4 Nf3 Bg7 5 e3} 12. Qc2 $146 {[%emt 0:01:30]} ({Predecessor:} 12. Bd2 Rfe8 13. Be1 a6 14. Rac1 Rac8 15. a3 h5 16. b4 Bf8 17. f4 Nh7 18. g4 hxg4 19. hxg4 {1-0 (69) Zhou,W (2624)-Wang,Y (2690) Danzhou 2012}) 12... Rfd8 {[%emt 0:04:30]} 13. Bd2 {[%emt 0:06:30]} Rac8 {[%emt 0:02:30]} 14. Rac1 {[%emt 0:14:30]} a6 {[%emt 0:05:30]} 15. Qb1 {[%emt 0:10:30]} b5 {[%emt 0:14:30]} 16. cxb5 {[%emt 0:01:30]} cxb5 {[%emt 0:00:30]} 17. a4 {[%emt 0:13:30]} b4 {[%emt 0:00:00]} 18. Ne2 {[%emt 0:01:30]} a5 {[%emt 0:00:00]} 19. Rxc8 {[%emt 0:02:30]} Rxc8 {[%emt 0:00:30]} 20. Rc1 {[%emt 0:00:30]} Qd8 {[%emt 0:01:30]} 21. f3 {[%emt 0:07:30]} Nb6 {[%emt 0:00:30]} 22. b3 {[%emt 0:00:30]} Nfd7 {[%emt 0:02:30]} 23. Ba6 {[%emt 0:01:30]} Rc7 {[%emt 0:00:30]} 24. Rxc7 {[%emt 0:03:30]} Qxc7 {[%emt 0:01:30]} 25. Qc1 {[%emt 0:00:30]} Qxc1+ {[%emt 0:02:30]} 26. Bxc1 {[%emt 0:00:30]} Kf8 {[%emt 0:02:30]} 27. Kf2 {[%emt 0:01:30]} Ke7 {[%emt 0:00:30]} 28. g4 {[%emt 0:06:30]} Nb8 {[%emt 0:08:30]} 29. Bb5 {[%emt 0:04:30]} Bh6 {[%emt 0:00:30]} 30. Bd2 {[%emt 0:00:50]} Nc8 {[%emt 0:00:30]} 31. Bc1 {[%emt 0:09:04]} Nd6 {[%emt 0:00:30]} 32. Bd3 {[%emt 0:00:07]} Nc6 {[%emt 0:00:30]} 33. Bb2 {[%emt 0:00:20]} Kd7 $11 {[%emt 0:01:30]} 34. Bc2 {[%emt 0:00:51]} Ke7 {[%emt 0:00:30]} 35. Bd3 {[%emt 0:00:26]} Kd7 {[%emt 0:00:00]} 36. Bc2 {[%emt 0:03:16]} 1/2-1/2